fUSD/lending_fUSD_20250125
["ID","MTS","AMOUNT","RATE_DAILY","PERIOD"]
[350351828,1737808254449,-1416.44,0.00018491,2]
[350351829,1737808254459,-500.0,0.00018491,2]
[350351830,1737808254469,-500.0,0.00018491,2]
[350351831,1737808254479,-1197.23,0.00018491,2]
[350351832,1737808254490,-1341.52,0.00018491,2]
[350351833,1737808254502,-500.0,0.00018491,2]
[350351834,1737808254513,-516.71,0.00018491,2]
[350351835,1737808254524,-500.0,0.00018491,2]
[350351836,1737808254534,-819.8,0.00018491,2]
[350351837,1737808254545,-500.0,0.00018491,2]
[350351838,1737808254555,-608.64,0.00018491,2]
[350351839,1737808254567,-679.18,0.00018491,2]
[350351840,1737808254578,-1050.87,0.00018491,2]
[350351841,1737808254589,-500.0,0.00018491,2]
[350351842,1737808254599,-1000.0,0.00018491,2]
[350351843,1737808254610,-884.7,0.00018491,2]
[350351844,1737808254620,-500.0,0.00018491,2]
[350351845,1737808254631,-1433.36,0.00018491,2]
[350351846,1737808254641,-1402.11,0.00018491,2]
[350351847,1737808254652,-874.74,0.00018493,2]
[350351848,1737808254662,-500.0,0.00018493,2]
[350351849,1737808254672,-1077.13,0.00018493,2]
[350351850,1737808254682,-1025.19,0.00018493,2]
[350351851,1737808254693,-818.65,0.00018493,2]
[350351852,1737808254704,-1515.13,0.00018493,2]
[350351853,1737808254715,-500.0,0.00018493,2]
[350351854,1737808254725,-1402.24,0.00018493,2]
[350351855,1737808254736,-997.1,0.00018493,2]
[350351856,1737808254746,-770.62,0.00018493,2]
[350351857,1737808254757,-1167.67,0.00018493,2]
[350351858,1737808254767,-500.0,0.00018493,2]
[350351859,1737808254777,-500.0,0.00018493,2]
[350351860,1737808254788,-970.28,0.00018493,2]
[350351861,1737808254799,-158.75660413,0.000185,2]
[350351862,1737808254809,-500.0,0.00018528,2]
[350351863,1737808254820,-500.0,0.00018528,2]
[350351864,1737808254830,-835.27,0.00018528,2]
[350351865,1737808254841,-500.0,0.00018528,2]
[350351866,1737808254851,-500.0,0.00018528,2]
[350351867,1737808254861,-987.14,0.00018528,2]
[350351868,1737808254871,-1164.4,0.00018528,2]
[350351869,1737808254881,-879.49,0.00018528,2]
[350351870,1737808254892,-872.61,0.00018528,2]
[350351871,1737808254902,-514.01,0.00018528,2]
[350351872,1737808254913,-1388.8,0.00018528,2]
[350351873,1737808254924,-1723.73,0.00018528,2]
[350351874,1737808254935,-512.42,0.00018528,2]
[350351875,1737808254945,-500.0,0.00018528,2]
[350351876,1737808254956,-702.52,0.00018528,2]
[350351877,1737808254967,-500.0,0.00018528,2]
[350351878,1737808254977,-625.92,0.00018528,2]
[350351879,1737808254987,-500.0,0.00018528,2]
[350351880,1737808254997,-500.0,0.00018528,2]
[350351881,1737808255007,-584.6,0.00018528,2]
[350351882,1737808255018,-1209.8,0.00018528,2]
[350351883,1737808255028,-500.0,0.00018528,2]
[350351884,1737808255038,-877.95,0.00018528,2]
[350351885,1737808255048,-2396.23,0.00018528,2]
[350351886,1737808255058,-729.77,0.00018528,2]
[350351887,1737808255067,-1283.92,0.00018528,2]
[350351888,1737808255077,-500.0,0.00018528,2]
[350351889,1737808255087,-500.0,0.00018528,2]
[350351890,1737808255097,-2117.34,0.00018528,2]
[350351891,1737808255106,-228.06318773,0.00018559,2]
[350351892,1737808255116,-228.06318773,0.00018559,2]
[350351893,1737808255129,-1642.0,0.000186,2]
[350351894,1737808255139,-628.63,0.00018628,2]
[350351895,1737808255149,-1416.44,0.00018628,2]
[350351896,1737808255159,-500.0,0.00018628,2]
[350351897,1737808255170,-500.0,0.00018628,2]
[350351898,1737808255180,-1197.23,0.00018628,2]
[350351899,1737808255190,-1341.52,0.00018628,2]
[350351900,1737808255202,-500.0,0.00018628,2]
[350351901,1737808255211,-516.71,0.00018628,2]
[350351902,1737808255221,-500.0,0.00018628,2]
[350351903,1737808255231,-819.8,0.00018628,2]
[350351904,1737808255241,-500.0,0.00018628,2]
[350351905,1737808255251,-679.18,0.00018628,2]
[350351906,1737808255262,-1050.87,0.00018628,2]
[350351907,1737808255272,-256.4,0.00018628,2]
[350351908,1737808255282,-1000.0,0.00018628,2]
[350351909,1737808255292,-884.7,0.00018628,2]
[350351910,1737808255302,-500.0,0.00018628,2]
[350351911,1737808255311,-1433.36,0.00018628,2]
[350351912,1737808255321,-1402.11,0.00018628,2]
[350351913,1737808255332,-874.74,0.0001863,2]
[350351914,1737808255346,-500.0,0.0001863,2]
[350351915,1737808255356,-1077.13,0.0001863,2]
[350351916,1737808255366,-1025.19,0.0001863,2]
[350351917,1737808255376,-818.65,0.0001863,2]
[350351918,1737808255386,-1515.13,0.0001863,2]
[350351919,1737808255397,-500.0,0.0001863,2]
[350351920,1737808255407,-1402.24,0.0001863,2]
[350351921,1737808255417,-997.1,0.0001863,2]
[350351922,1737808255427,-770.62,0.0001863,2]
[350351923,1737808255437,-1167.67,0.0001863,2]
[350351924,1737808255447,-500.0,0.0001863,2]
[350351925,1737808255457,-500.0,0.0001863,2]
[350351926,1737808255467,-970.28,0.0001863,2]
[350351927,1737808255477,-932.58035054,0.00018643,2]
[350351928,1737808255487,-500.0,0.00018665,2]
[350351929,1737808255497,-500.0,0.00018665,2]
[350351930,1737808255507,-835.27,0.00018665,2]
[350351931,1737808255518,-500.0,0.00018665,2]
[350351932,1737808255528,-500.0,0.00018665,2]
[350351933,1737808255538,-987.14,0.00018665,2]
[350351934,1737808255549,-1164.4,0.00018665,2]
[350351935,1737808255559,-879.49,0.00018665,2]
[350351936,1737808255569,-872.61,0.00018665,2]
[350351937,1737808255579,-514.01,0.00018665,2]
[350351938,1737808255589,-1388.8,0.00018665,2]
[350351939,1737808255599,-1723.73,0.00018665,2]
[350351940,1737808255610,-512.42,0.00018665,2]
[350351941,1737808255620,-500.0,0.00018665,2]
[350351942,1737808255630,-702.52,0.00018665,2]
[350351943,1737808255640,-182.46,0.00018665,2]
[350351944,1737808255650,-625.92,0.00018665,2]
[350351945,1737808255660,-500.0,0.00018665,2]
[350351946,1737808255670,-500.0,0.00018665,2]
[350351947,1737808255679,-584.6,0.00018665,2]
[350351948,1737808255694,-1209.8,0.00018665,2]
[350351949,1737808255950,-500.0,0.00018665,2]
[350351950,1737808255972,-877.95,0.00018665,2]
[350351951,1737808255982,-2396.23,0.00018665,2]
[350351952,1737808255991,-729.77,0.00018665,2]
[350351953,1737808256000,-1283.92,0.00018665,2]
[350351954,1737808256010,-500.0,0.00018665,2]
[350351955,1737808256019,-500.0,0.00018665,2]
[350351956,1737808256028,-2117.34,0.00018665,2]
[350351957,1737808256038,-226.69,0.00018751,2]
[350351958,1737808256048,-628.63,0.00018765,2]
[350351959,1737808256056,-1416.44,0.00018765,2]
[350351960,1737808256065,-500.0,0.00018765,2]
[350351961,1737808256075,-500.0,0.00018765,2]
[350351962,1737808256084,-1197.23,0.00018765,2]
[350351963,1737808256093,-1341.52,0.00018765,2]
[350351964,1737808256102,-500.0,0.00018765,2]
[350351965,1737808256112,-516.71,0.00018765,2]
[350351966,1737808256122,-500.0,0.00018765,2]
[350351967,1737808256134,-819.8,0.00018765,2]
[350351968,1737808256143,-500.0,0.00018765,2]
[350351969,1737808256153,-679.18,0.00018765,2]
[350351970,1737808256162,-1050.87,0.00018765,2]
[350351971,1737808256173,-1000.0,0.00018765,2]
[350351972,1737808256182,-884.7,0.00018765,2]
[350351973,1737808256191,-500.0,0.00018765,2]
[350351974,1737808256203,-1433.36,0.00018765,2]
[350351975,1737808256213,-1402.11,0.00018765,2]
[350351976,1737808256223,-874.74,0.00018767,2]
[350351977,1737808256233,-500.0,0.00018767,2]
[350351978,1737808256242,-1077.13,0.00018767,2]
[350351979,1737808256252,-1025.19,0.00018767,2]
[350351980,1737808256261,-818.65,0.00018767,2]
[350351981,1737808256270,-1515.13,0.00018767,2]
[350351982,1737808256280,-500.0,0.00018767,2]
[350351983,1737808256290,-1402.24,0.00018767,2]
[350351984,1737808256300,-997.1,0.00018767,2]
[350351985,1737808256309,-770.62,0.00018767,2]
[350351986,1737808256319,-1167.67,0.00018767,2]
[350351987,1737808256328,-500.0,0.00018767,2]
[350351988,1737808256337,-500.0,0.00018767,2]
[350351989,1737808256346,-970.28,0.00018767,2]
[350351990,1737808256355,-672.44042542,0.000188,2]
[350351991,1737808256364,-500.0,0.00018801,2]
[350351992,1737808256374,-500.0,0.00018801,2]
[350351993,1737808256383,-500.0,0.00018801,2]
[350351994,1737808256392,-500.0,0.00018801,2]
[350351995,1737808256401,-500.0,0.00018801,2]
[350351996,1737808256410,-500.0,0.00018801,2]
[350351997,1737808256420,-500.0,0.00018801,2]
[350351998,1737808256429,-500.0,0.00018801,2]
[350351999,1737808256439,-500.0,0.00018801,2]
[350352000,1737808256448,-500.0,0.00018801,2]
[350352001,1737808256458,-500.0,0.00018801,2]
[350352002,1737808256467,-500.0,0.00018801,2]
[350352003,1737808256478,-500.0,0.00018801,2]
[350352004,1737808256487,-500.00000001,0.00018801,2]
[350352005,1737808256496,-500.0,0.00018801,2]
[350352006,1737808256505,-500.0,0.00018801,2]
[350352007,1737808256515,-500.0,0.00018801,2]
[350352008,1737808256524,-200.0,0.00018801,2]
[350352009,1737808256536,-506.5696643,0.00018801,2]
[350352010,1737808256547,-500.0,0.00018801,2]
[350352011,1737808256556,-327.74713642,0.00018801,2]
[350352012,1737808256567,-512.74990874,0.00018801,2]
[350352013,1737808256576,-500.0,0.00018801,2]
[350352014,1737808256585,-500.0,0.00018801,2]
[350352015,1737808256595,-500.0,0.00018801,2]
[350352016,1737808256603,-500.0,0.00018801,2]
[350352017,1737808256613,-500.0,0.00018801,2]
[350352018,1737808256622,-500.0,0.00018801,2]
[350352019,1737808256631,-500.0,0.00018801,2]
[350352020,1737808256640,-500.0,0.00018801,2]
[350352021,1737808256649,-500.0,0.00018801,2]
[350352022,1737808256658,-500.0,0.00018801,2]
[350352023,1737808256667,-500.0,0.00018801,2]
[350352024,1737808256676,-500.0,0.00018801,2]
[350352025,1737808256691,-500.0,0.00018801,2]
[350352026,1737808256701,-500.0,0.00018801,2]
[350352027,1737808256710,-509.13468608,0.00018801,2]
[350352028,1737808256719,-500.0,0.00018801,2]
[350352029,1737808256728,-500.0,0.00018801,2]
[350352030,1737808256737,-500.0,0.00018801,2]
[350352031,1737808256747,-500.0,0.00018801,2]
[350352032,1737808256756,-500.0,0.00018801,2]
[350352033,1737808256765,-292.15543695,0.00018801,2]
[350352034,1737808256774,-500.0,0.00018801,2]
[350352035,1737808256783,-507.01216392,0.00018801,2]
[350352036,1737808256793,-501.46830707,0.00018801,2]
[350352037,1737808256802,-500.0,0.00018801,2]
[350352038,1737808256811,-500.0,0.00018801,2]
[350352039,1737808256820,-500.0,0.00018801,2]
[350352040,1737808256829,-500.0,0.00018801,2]
[350352041,1737808256838,-500.0,0.00018801,2]
[350352042,1737808256846,-500.0,0.00018801,2]
[350352043,1737808256855,-508.22363121,0.00018801,2]
[350352044,1737808256864,-500.0,0.00018801,2]
[350352045,1737808256873,-531.17571177,0.00018801,2]
[350352046,1737808256883,-500.0,0.00018801,2]
[350352047,1737808256892,-500.0,0.00018801,2]
[350352048,1737808256901,-500.0,0.00018801,2]
[350352049,1737808256910,-500.0,0.00018801,2]
[350352050,1737808256919,-500.0,0.00018801,2]
[350352051,1737808256928,-198.92003353,0.00018801,2]
[350352052,1737808256937,-556.66641326,0.00018801,2]
[350352053,1737808256946,-504.36495375,0.00018801,2]
[350352054,1737808256955,-504.21320452,0.00018801,2]
[350352055,1737808256965,-500.0,0.00018801,2]
[350352056,1737808256974,-500.0,0.00018801,2]
[350352057,1737808256984,-500.0,0.00018801,2]
[350352058,1737808256993,-419.03340695,0.00018801,2]
[350352059,1737808257002,-500.0,0.00018801,2]
[350352060,1737808257011,-500.0,0.00018801,2]
[350352061,1737808257020,-503.76437446,0.00018801,2]
[350352062,1737808257030,-509.50403772,0.00018801,2]
[350352063,1737808257040,-500.0,0.00018801,2]
[350352064,1737808257049,-502.66325172,0.00018801,2]
[350352065,1737808257058,-503.70640026,0.00018801,2]
[350352066,1737808257067,-500.0,0.00018801,2]
[350352067,1737808257076,-503.21581185,0.00018801,2]
[350352068,1737808257085,-554.2,0.00018801,2]
[350352069,1737808257094,-500.0,0.00018801,2]
[350352070,1737808257103,-500.0,0.00018801,2]
[350352071,1737808257112,-500.0,0.00018801,2]
[350352072,1737808257122,-500.0,0.00018801,2]
[350352073,1737808257134,-500.0,0.00018801,2]
[350352074,1737808257143,-500.0,0.00018801,2]
[350352075,1737808257152,-500.0,0.00018801,2]
[350352076,1737808257162,-500.0,0.00018801,2]
[350352077,1737808257173,-500.0,0.00018801,2]
[350352078,1737808257182,-524.10212941,0.00018801,2]
[350352079,1737808257192,-500.0,0.00018801,2]
[350352080,1737808257201,-500.0,0.00018801,2]
[350352081,1737808257213,-510.13466059,0.00018801,2]
[350352082,1737808257222,-500.0,0.00018801,2]
[350352083,1737808257231,-500.0,0.00018801,2]
[350352084,1737808257241,-500.0,0.00018801,2]
[350352085,1737808257250,-500.0,0.00018801,2]
[350352086,1737808257259,-500.0,0.00018801,2]
[350352087,1737808257268,-500.0,0.00018801,2]
[350352088,1737808257277,-392.64,0.00018801,2]
[350352089,1737808257289,-500.0,0.00018801,2]
[350352090,1737808257299,-500.0,0.00018801,2]
[350352091,1737808257307,-500.0,0.00018801,2]
[350352092,1737808257315,-500.0,0.00018801,2]
[350352093,1737808257325,-508.10586194,0.00018801,2]
[350352094,1737808257334,-500.0,0.00018801,2]
[350352095,1737808257343,-500.0,0.00018801,2]
[350352096,1737808257352,-500.0,0.00018801,2]
[350352097,1737808257362,-517.83537555,0.00018801,2]
[350352098,1737808257371,-500.0,0.00018801,2]
[350352099,1737808257380,-500.0,0.00018801,2]
[350352100,1737808257389,-500.0,0.00018801,2]
[350352101,1737808257399,-321.46,0.00018801,2]
[350352102,1737808257408,-513.07244045,0.00018801,2]
[350352103,1737808257417,-500.0,0.00018801,2]
[350352104,1737808257426,-500.0,0.00018801,2]
[350352105,1737808257435,-500.0,0.00018801,2]
[350352106,1737808257443,-500.0,0.00018801,2]
[350352107,1737808257452,-505.68054413,0.00018801,2]
[350352108,1737808257462,-483.19467329,0.00018801,2]
[350352109,1737808257471,-500.0,0.00018801,2]
[350352110,1737808257480,-500.0,0.00018801,2]
[350352111,1737808257489,-500.0,0.00018801,2]
[350352112,1737808257499,-500.0,0.00018801,2]
[350352113,1737808257507,-505.51328722,0.00018801,2]
[350352114,1737808257517,-500.0,0.00018801,2]
[350352115,1737808257526,-500.0,0.00018801,2]
[350352116,1737808257538,-504.48820357,0.00018801,2]
[350352117,1737808257548,-500.0,0.00018801,2]
[350352118,1737808257557,-500.0,0.00018801,2]
[350352119,1737808257566,-500.0,0.00018801,2]
[350352120,1737808257576,-500.0,0.00018801,2]
[350352121,1737808257585,-500.0,0.00018801,2]
[350352122,1737808257595,-201.34399345,0.00018801,2]
[350352123,1737808257604,-504.37012111,0.00018801,2]
[350352124,1737808257613,-500.0,0.00018801,7]
[350352125,1737808257623,-500.0,0.00018801,2]
[350352126,1737808257632,-500.0,0.00018801,2]
[350352127,1737808257642,-500.0,0.00018801,2]
[350352128,1737808257651,-500.0,0.00018801,2]
[350352129,1737808257660,-500.0,0.00018801,2]
[350352130,1737808257670,-500.0,0.00018801,2]
[350352131,1737808257679,-515.08856061,0.00018801,2]
[350352132,1737808257688,-500.0,0.00018801,2]
[350352133,1737808257697,-528.35435841,0.00018801,2]
[350352134,1737808257706,-500.0,0.00018801,2]
[350352135,1737808257719,-341.4733515,0.00018801,2]
[350352136,1737808257729,-500.0,0.00018801,2]
[350352137,1737808257739,-500.0,0.00018801,2]
[350352138,1737808257749,-517.75770423,0.00018801,2]
[350352139,1737808257759,-500.0,0.00018801,2]
[350352140,1737808257769,-500.0,0.00018801,2]
[350352141,1737808257778,-500.0,0.00018801,2]
[350352142,1737808257791,-500.0,0.00018801,2]
[350352143,1737808257802,-500.0,0.00018801,2]
[350352144,1737808257812,-500.0,0.00018801,2]
[350352145,1737808257822,-270.27783878,0.00018801,2]
[350352146,1737808257832,-500.0,0.00018801,2]
[350352147,1737808257842,-500.0,0.00018801,2]
[350352148,1737808257852,-449.52002236,0.00018801,2]
[350352149,1737808257862,-500.0,0.00018801,2]
[350352150,1737808257872,-500.0,0.00018801,2]
[350352151,1737808257882,-500.0,0.00018801,2]
[350352152,1737808257892,-500.0,0.00018801,2]
[350352153,1737808257902,-500.0,0.00018801,2]
[350352154,1737808257911,-511.80459735,0.00018801,2]
[350352155,1737808257922,-500.0,0.00018801,2]
[350352156,1737808257932,-500.0,0.00018801,2]
[350352157,1737808257943,-500.0,0.00018801,2]
[350352158,1737808257954,-500.0,0.00018801,2]
[350352159,1737808257964,-500.0,0.00018801,2]
[350352160,1737808257974,-500.0,0.00018801,2]
[350352161,1737808257984,-500.0,0.00018801,2]
[350352162,1737808257994,-354.7147404,0.00018801,2]
[350352163,1737808258004,-500.0,0.00018801,2]
[350352164,1737808258015,-500.0,0.00018801,2]
[350352165,1737808258024,-500.0,0.00018801,2]
[350352166,1737808258036,-500.0,0.00018801,2]
[350352167,1737808258046,-300.0,0.00018801,2]
[350352168,1737808258057,-500.0,0.00018801,2]
[350352169,1737808258066,-500.0,0.00018801,2]
[350352170,1737808258077,-500.0,0.00018801,2]
[350352171,1737808258087,-500.0,0.00018801,2]
[350352172,1737808258096,-500.0,0.00018801,2]
[350352173,1737808258106,-500.0,0.00018801,2]
[350352174,1737808258115,-500.0,0.00018801,2]
[350352175,1737808258126,-500.0,0.00018801,2]
[350352176,1737808258137,-500.0,0.00018801,2]
[350352177,1737808258147,-500.0,0.00018801,2]
[350352178,1737808258157,-500.0,0.00018801,2]
[350352179,1737808258167,-500.0,0.00018801,2]
[350352180,1737808258176,-502.98215513,0.00018801,2]
[350352181,1737808258187,-500.0,0.00018801,2]
[350352182,1737808258197,-500.0,0.00018801,2]
[350352183,1737808258208,-500.0,0.00018801,2]
[350352184,1737808258218,-500.0,0.00018801,2]
[350352185,1737808258227,-500.0,0.00018801,2]
[350352186,1737808258237,-500.0,0.00018801,2]
[350352187,1737808258247,-503.94448287,0.00018801,2]
[350352188,1737808258256,-500.0,0.00018801,2]
[350352189,1737808258266,-500.0,0.00018801,2]
[350352190,1737808258275,-500.0,0.00018801,2]
[350352191,1737808258285,-500.0,0.00018801,2]
[350352192,1737808258295,-500.0,0.00018801,2]
[350352193,1737808258304,-500.0,0.00018801,2]
[350352194,1737808258314,-500.0,0.00018801,2]
[350352195,1737808258324,-500.0,0.00018801,2]
[350352196,1737808258334,-500.0,0.00018801,2]
[350352197,1737808258343,-517.61798395,0.00018801,2]
[350352198,1737808258353,-500.0,0.00018801,2]
[350352199,1737808258363,-500.0,0.00018801,2]
[350352200,1737808258372,-500.0,0.00018801,2]
[350352201,1737808258382,-500.0,0.00018801,2]
[350352202,1737808258392,-500.0,0.00018801,2]
[350352203,1737808258401,-513.68232798,0.00018801,2]
[350352204,1737808258411,-500.0,0.00018801,2]
[350352205,1737808258421,-500.0,0.00018801,2]
[350352206,1737808258430,-500.0,0.00018801,2]
[350352207,1737808258438,-500.0,0.00018801,2]
[350352208,1737808258447,-500.0,0.00018801,2]
[350352209,1737808258457,-291.74,0.00018801,2]
[350352210,1737808258467,-500.0,0.00018801,2]
[350352211,1737808258477,-500.0,0.00018801,2]
[350352212,1737808258487,-500.0,0.00018801,2]
[350352213,1737808258497,-500.0,0.00018801,2]
[350352214,1737808258506,-500.0,0.00018801,2]
[350352215,1737808258516,-500.0,0.00018801,2]
[350352216,1737808258525,-500.0,0.00018801,2]
[350352217,1737808258537,-500.0,0.00018801,2]
[350352218,1737808258546,-500.0,0.00018801,2]
[350352219,1737808258555,-500.0,0.00018801,2]
[350352220,1737808258565,-500.91666706,0.00018801,2]
[350352221,1737808258574,-500.0,0.00018801,2]
[350352222,1737808258583,-500.0,0.00018801,2]
[350352223,1737808258592,-500.0,0.00018801,2]
[350352224,1737808258602,-500.0,0.00018801,2]
[350352225,1737808258611,-500.0,0.00018801,2]
[350352226,1737808258620,-500.0,0.00018801,2]
[350352227,1737808258630,-500.0,0.00018801,2]
[350352228,1737808258639,-500.0,0.00018802,2]
[350352229,1737808258648,-500.0,0.00018802,2]
[350352230,1737808258658,-835.27,0.00018802,2]
[350352231,1737808258668,-500.0,0.00018802,2]
[350352232,1737808258677,-500.0,0.00018802,2]
[350352233,1737808258687,-987.14,0.00018802,2]
[350352234,1737808258696,-1164.4,0.00018802,2]
[350352235,1737808258705,-879.49,0.00018802,2]
[350352236,1737808258714,-872.61,0.00018802,2]
[350352237,1737808258723,-514.01,0.00018802,2]
[350352238,1737808258732,-1388.8,0.00018802,2]
[350352239,1737808258743,-1723.73,0.00018802,2]
[350352240,1737808258752,-512.42,0.00018802,2]
[350352241,1737808258761,-500.0,0.00018802,2]
[350352242,1737808258771,-702.52,0.00018802,2]
[350352243,1737808258780,-625.92,0.00018802,2]
[350352244,1737808258791,-500.0,0.00018802,2]
[350352245,1737808258801,-500.0,0.00018802,2]
[350352246,1737808258810,-584.6,0.00018802,2]
[350352247,1737808258820,-1209.8,0.00018802,2]
[350352248,1737808258830,-500.0,0.00018802,2]
[350352249,1737808258839,-877.95,0.00018802,2]
[350352250,1737808258848,-2396.23,0.00018802,2]
[350352251,1737808258858,-729.77,0.00018802,2]
[350352252,1737808258867,-1283.92,0.00018802,2]
[350352253,1737808258877,-500.0,0.00018802,2]
[350352254,1737808258887,-500.0,0.00018802,2]
[350352255,1737808259042,-2117.34,0.00018802,2]
[350352256,1737808259057,-571.72464225,0.00018866,2]
[350352257,1737808259068,-1700.0,0.000189,6]
[350352258,1737808259081,-628.63,0.00018902,2]
[350352259,1737808259093,-1416.44,0.00018902,2]
[350352260,1737808259105,-500.0,0.00018902,2]
[350352261,1737808259114,-500.0,0.00018902,2]
[350352262,1737808259125,-1197.23,0.00018902,2]
[350352263,1737808259136,-1341.52,0.00018902,2]
[350352264,1737808259146,-500.0,0.00018902,2]
[350352265,1737808259155,-516.71,0.00018902,2]
[350352266,1737808259165,-500.0,0.00018902,2]
[350352267,1737808259176,-819.8,0.00018902,2]
[350352268,1737808259186,-500.0,0.00018902,2]
[350352269,1737808259195,-679.18,0.00018902,2]
[350352270,1737808259207,-1050.87,0.00018902,2]
[350352271,1737808259216,-884.7,0.00018902,2]
[350352272,1737808259226,-1433.36,0.00018902,2]
[350352273,1737808259236,-1402.11,0.00018902,2]
[350352274,1737808259247,-874.74,0.00018904,2]
[350352275,1737808259256,-500.0,0.00018904,2]
[350352276,1737808259265,-1077.13,0.00018904,2]
[350352277,1737808259275,-1025.19,0.00018904,2]
[350352278,1737808259291,-818.65,0.00018904,2]
[350352279,1737808259300,-1515.13,0.00018904,2]
[350352280,1737808259310,-500.0,0.00018904,2]
[350352281,1737808259319,-1402.24,0.00018904,2]
[350352282,1737808259329,-997.1,0.00018904,2]
[350352283,1737808259339,-770.62,0.00018904,2]
[350352284,1737808259349,-1167.67,0.00018904,2]
[350352285,1737808259359,-500.0,0.00018904,2]
[350352286,1737808259368,-500.0,0.00018904,2]
[350352287,1737808259384,-435.16922819,0.00018938,2]
[350352288,1737808259394,-500.0,0.00018938,2]
[350352289,1737808259404,-524.25767423,0.00018938,2]
[350352290,1737808259414,-500.0,0.00018938,2]
[350352291,1737808259423,-500.0,0.00018938,2]
[350352292,1737808259434,-513.90115436,0.00018938,2]
[350352293,1737808259443,-500.0,0.00018938,2]
[350352294,1737808259453,-500.0,0.00018938,2]
[350352295,1737808259463,-500.0,0.00018938,2]
[350352296,1737808259473,-500.0,0.00018938,2]
[350352297,1737808259483,-500.0,0.00018938,2]
[350352298,1737808259499,-500.0,0.00018938,7]
[350352299,1737808259509,-500.0,0.00018938,2]
[350352300,1737808259519,-500.0,0.00018938,2]
[350352301,1737808259530,-500.0,0.00018938,2]
[350352302,1737808259541,-500.0,0.00018938,2]
[350352303,1737808259551,-500.0,0.00018938,2]
[350352304,1737808259560,-500.0,0.00018938,2]
[350352305,1737808259571,-500.0,0.00018938,2]
[350352306,1737808259580,-500.0,0.00018938,2]
[350352307,1737808259590,-500.0,0.00018938,2]
[350352308,1737808259600,-500.0,0.00018938,2]
[350352309,1737808259610,-500.0,0.00018938,2]
[350352310,1737808259620,-500.0,0.00018938,2]
[350352311,1737808259632,-500.0,0.00018938,2]
[350352312,1737808259642,-500.0,0.00018938,2]
[350352313,1737808259651,-505.53869558,0.00018938,2]
[350352314,1737808259661,-500.0,0.00018938,2]
[350352315,1737808259670,-500.0,0.00018938,2]
[350352316,1737808259679,-500.0,0.00018938,2]
[350352317,1737808259688,-500.0,0.00018938,2]
[350352318,1737808259698,-300.0,0.00018938,2]
[350352319,1737808259708,-605.76959962,0.00018938,2]
[350352320,1737808259717,-500.0,0.00018938,2]
[350352321,1737808259726,-500.0,0.00018938,2]
[350352322,1737808259736,-500.0,0.00018938,2]
[350352323,1737808259746,-500.0,0.00018938,2]
[350352324,1737808259756,-500.0,0.00018938,2]
[350352325,1737808259766,-420.03952231,0.00018938,2]
[350352326,1737808259776,-500.0,0.00018938,2]
[350352327,1737808259786,-500.0,0.00018938,2]